bitfinex/quotes_ETHUSD_20240707
["timestamp","ask_amount","ask_price","bid_price","bid_amount"]
[1720337539257,2.34504457,3008.2,3008.1,2.32705]
[1720337539981,2.32716,3008.0,3006.8,0.35648304]
[1720337540177,4.67204457,3008.2,3007.4,2.32754]
[1720337540178,0.23450446,3008.1,3007.4,2.32754]
[1720337540378,2.56155446,3008.1,3007.4,2.32754]
[1720337540588,0.23450446,3008.1,3007.4,2.32754]
[1720337540767,0.23450446,3008.1,3006.9,2.32794]
[1720337540768,2.34504457,3008.2,3007.7,2.32734]
[1720337542296,2.34504457,3008.2,3007.3,2.32764]
[1720337542297,4.67201457,3008.2,3007.3,2.32764]
[1720337542607,4.67201457,3008.2,3007.4,2.32758]
[1720337542760,4.67201457,3008.2,3007.5,2.32751]
[1720337542955,0.69989146,3008.1,3007.5,4.65495]
[1720337543288,2.34504457,3008.2,3007.7,2.32734]
[1720337543666,2.34504457,3008.2,3007.5,2.32744]
[1720337544190,2.34504457,3008.2,3007.7,2.32734]
[1720337546116,2.34504457,3008.2,3007.5,4.65489]
[1720337546413,2.34504457,3008.2,3007.6,2.3274]
[1720337546612,2.81223803,3008.2,3007.7,2.32734]
[1720337547863,5.13920803,3008.2,3007.4,2.32756]
[1720337548291,2.32708,3008.1,3007.4,2.32756]
[1720337548762,2.32708,3008.1,3007.5,2.32751]
[1720337549103,2.81223803,3008.2,3007.6,2.32741]
[1720337549282,2.34504457,3008.2,3007.4,2.32758]
[1720337549457,2.34504457,3008.2,3007.7,2.32732]
[1720337549660,2.34504457,3008.2,3007.9,2.32715]
[1720337549898,2.34504457,3008.2,3007.9,2.32714]
[1720337550662,2.34504457,3008.2,3007.9,4.65429]
[1720337551063,2.34504457,3008.2,3008.0,2.32712]
[1720337551258,2.34504457,3008.2,3007.9,2.32714]
[1720337551489,2.57954903,3008.2,3007.7,2.3273]
[1720337552199,2.57954903,3008.2,3007.7,2.32733]
[1720337552513,2.3271,3008.1,3007.1,2.32779]
[1720337552796,2.3048,3008.0,3007.3,2.32761]
[1720337552978,5.3553089,3008.0,3007.3,2.32761]
[1720337553189,3.0281689,3008.0,3007.3,2.32761]
[1720337553374,2.3272,3007.9,3007.1,2.32776]
[1720337553585,3.0281689,3008.0,3007.1,2.32776]
[1720337553781,2.32728,3007.8,3007.2,2.32774]
[1720337554873,2.86277489,3007.9,3007.2,2.32774]
[1720337555075,0.53552489,3007.9,3007.3,2.32761]
[1720337555380,0.53552489,3007.9,3007.4,2.32753]
[1720337555963,2.86274489,3007.9,3007.3,2.32766]
[1720337556280,0.58909138,3007.8,3007.3,2.32766]
[1720337559105,0.58909138,3007.8,3007.3,2.32761]
[1720337559402,2.3048,3008.0,3007.4,0.06649898]
[1720337559702,5.91504457,3008.2,3007.8,2.32727]
[1720337560408,5.91504457,3008.2,3007.6,2.32736]
[1720337560608,5.91504457,3008.2,3007.7,2.32734]
[1720337560609,0.59150446,3008.1,3007.7,2.32734]
[1720337560807,0.59150446,3008.1,3007.0,0.00199536]
[1720337560970,0.59150446,3008.1,3007.6,2.32738]
[1720337561174,0.59150446,3008.1,3007.4,2.32752]
[1720337561392,0.8833529,3008.0,3007.4,4.65504]
[1720337561706,0.8833529,3008.0,3007.4,2.32752]
[1720337561909,0.8833529,3008.0,3007.6,2.32739]
[1720337562111,0.8833529,3008.0,3007.6,4.65478]
[1720337562405,0.8833529,3008.0,3007.6,2.32739]
[1720337562617,5.91504457,3008.2,3007.6,2.32739]
[1720337562915,5.91504457,3008.2,3007.7,2.32733]
[1720337564278,1.1511839,3008.1,3007.7,2.32733]
[1720337564488,5.91504457,3008.2,3007.7,2.32733]
[1720337564693,1.15118994,3008.1,3007.7,2.32733]
[1720337564887,0.70662345,3008.1,3007.7,2.32733]
[1720337565321,1.15119173,3008.0,3007.7,2.32733]
[1720337565632,0.70662345,3008.1,3007.7,2.32733]
[1720337565789,1.15119021,3008.0,3007.7,2.32733]
[1720337565990,0.70662345,3008.1,3007.7,2.32733]
[1720337566191,5.91504457,3008.2,3007.8,2.32727]
[1720337566391,5.91504457,3008.2,3007.9,2.32719]
[1720337566827,3.57,3008.2,3007.9,2.32719]
[1720337567241,5.91504457,3008.2,3008.1,2.32705]
[1720337567403,5.91504457,3008.2,3008.1,4.886805]
[1720337567727,5.91504457,3008.2,3008.1,4.6541]
[1720337568415,5.91504457,3008.2,3008.1,2.32705]
[1720337568724,5.91504457,3008.2,3007.9,2.32716]
[1720337569613,5.91504457,3008.2,3007.7,2.32733]
[1720337570052,1.15116939,3008.1,3007.7,2.32733]
[1720337570349,1.1511924,3008.0,3007.7,2.32733]
[1720337570652,0.9393214,3008.1,3007.7,2.32733]
[1720337573536,5.91504457,3008.2,3007.7,2.32733]
[1720337576128,5.91504457,3008.2,3007.7,4.65464]
[1720337577155,3.57,3008.2,3007.7,2.32731]
[1720337580966,1.15117826,3008.1,3007.7,2.32731]
[1720337581172,3.57,3008.2,3007.7,2.32731]
[1720337581373,4.40707373,3008.1,3007.3,2.32762]
[1720337581565,1.25757078,3008.0,3007.4,2.32757]
[1720337581899,1.25765974,3007.9,3007.3,2.32761]
[1720337582102,0.35848297,3007.8,3007.3,2.32761]
[1720337582450,0.35848297,3007.8,3007.4,2.32754]
[1720337582649,3.149499,3008.1,3007.5,2.32751]
[1720337582876,1.25763485,3008.0,3007.5,2.32751]
[1720337583148,3.149499,3008.1,3007.5,2.32751]
[1720337583379,1.25765355,3008.0,3007.5,2.32751]
[1720337583682,5.27758489,3008.2,3007.9,2.3272]
[1720337583683,3.57,3008.2,3007.9,2.3272]
[1720337584581,3.57,3008.2,3007.7,2.32729]
[1720337585301,1.15115475,3008.1,3007.7,2.32729]
[1720337585449,1.257578,3008.0,3007.4,2.32754]
[1720337585655,2.32705,3008.1,3007.3,2.3276]
[1720337585845,1.25766837,3008.0,3007.3,2.3276]
[1720337586055,0.93902654,3008.0,3007.5,2.32751]
[1720337587101,2.34504457,3007.9,3007.5,2.32751]
[1720337587303,2.34504457,3007.9,3007.8,2.32728]
[1720337587509,3.57,3008.2,3007.9,2.32717]
[1720337589179,5.91504457,3008.2,3008.1,4.6541]
[1720337590086,5.91504457,3008.2,3007.6,2.32736]
[1720337590285,1.2575685,3008.1,3007.6,2.32736]
[1720337590602,5.91504457,3008.2,3007.6,2.32736]
[1720337590603,1.25757315,3008.0,3007.6,2.32736]
[1720337590781,1.15113668,3007.9,3007.6,2.32736]
[1720337590977,1.15113668,3008.1,3007.6,2.32736]
[1720337591289,1.15122403,3008.0,3007.6,2.32736]
[1720337591496,1.34781054,3008.1,3007.6,2.32736]
[1720337591690,1.15123103,3008.0,3007.6,2.32736]
[1720337591901,1.34781054,3008.1,3007.6,2.32736]
[1720337592111,1.15123127,3008.0,3007.6,2.32736]
[1720337592313,5.91504457,3008.2,3007.8,2.32725]
[1720337593224,5.91504457,3008.2,3007.7,2.3273]
[1720337593422,1.15118288,3008.1,3007.7,2.3273]
[1720337593593,6.97691703,3008.2,3007.7,2.3273]
[1720337593793,1.15118496,3008.1,3007.7,2.3273]
[1720337594134,6.97691703,3008.2,3007.8,2.32726]
[1720337594295,1.15115959,3008.1,3007.8,2.32726]
[1720337594491,5.91504457,3008.2,3007.9,2.39367906]
[1720337594720,5.91504457,3008.2,3008.1,2.32705]
[1720337596151,2.34504457,3008.2,3008.1,2.32705]
[1720337597614,2.34504457,3008.2,3008.1,4.6541]
[1720337600838,1.99600491,3008.2,3008.1,7.04763236]
[1720337601033,1.52096714,3008.2,3008.1,7.92395186]
[1720337604747,0.99067533,3008.2,3008.1,10.37805186]
[1720337605077,0.99067533,3008.2,3008.1,12.74105186]
[1720337605078,0.65087715,3008.2,3008.1,12.74105186]
[1720337605523,7.41,3009.2,3009.1,2.32627]
[1720337605717,2.32585,3009.7,3008.8,2.32643]
[1720337606054,2.32585,3009.7,3009.0,2.32634]
[1720337606258,2.3261,3009.4,3008.7,2.32652]
[1720337606465,2.3835,3009.6,3008.8,2.32647]
[1720337606466,7.03535,3009.6,3008.8,2.32647]
[1720337606619,2.32597,3009.5,3008.8,2.32647]
[1720337607228,2.32597,3009.5,3008.9,2.32642]
[1720337607865,2.3835,3009.6,3008.9,2.32636]
[1720337608025,0.470935,3009.5,3008.9,2.32636]
[1720337608227,0.470935,3009.5,3009.1,2.32626]
[1720337610204,0.470935,3009.5,3008.7,2.32655]
[1720337610205,2.796945,3009.5,3008.7,2.32655]
[1720337610494,4.58276,3009.0,3008.3,2.32684]
[1720337611789,2.32681,3008.5,3008.0,0.0532262]
[1720337612084,2.3268,3008.5,3008.0,0.0532262]
[1720337613784,2.32659,3008.7,3008.0,2.3803162]
[1720337613993,9.01933,3008.9,3008.1,2.32703]
[1720337614203,0.669284,3008.8,3008.2,2.32697]
[1720337614414,6.69284,3008.9,3008.2,2.32697]
[1720337614717,6.69284,3008.9,3008.3,2.32688]
[1720337614870,4.3664,3008.9,3008.3,2.32688]
[1720337615374,6.69284,3008.9,3008.1,2.32699]
[1720337615607,9.01933,3008.9,3008.1,2.32699]
[1720337615790,0.901933,3008.8,3008.1,2.32699]
[1720337616180,0.901933,3008.8,3008.0,2.3803062]
[1720337616380,2.32663,3008.7,3008.0,2.3803062]
[1720337616595,2.32663,3008.7,3008.0,0.0532262]
[1720337617513,0.901933,3008.8,3008.0,0.0532262]
[1720337617514,2.32681,3008.4,3008.0,0.0532262]
[1720337619031,2.8534533,3008.7,3008.0,0.0532262]
[1720337619186,2.32668,3008.6,3008.0,0.0532262]
[1720337619510,2.32675,3008.5,3008.0,0.0532262]
[1720337620380,2.32696,3008.3,3008.0,0.0532262]
[1720337621178,2.2788,3008.4,3008.0,0.0532262]
[1720337621534,2.61206533,3008.6,3008.0,0.0532262]
[1720337621830,2.32672,3008.6,3008.0,2.3803462]
[1720337622319,2.8534733,3008.7,3008.0,2.3803462]
[1720337622522,0.5268333,3008.7,3008.1,2.327]
[1720337622824,2.32651,3008.8,3008.1,2.327]
[1720337622989,1.15104394,3008.7,3008.1,2.327]
[1720337623193,4.43645,3008.9,3008.1,4.65398]
[1720337623413,4.43645,3008.9,3008.2,2.32695]
[1720337624027,2.11,3008.9,3008.3,2.32687]
[1720337624920,2.11,3008.9,3008.6,2.32665]
[1720337626823,2.11,3008.9,3008.6,2.32658]
[1720337627133,2.11,3008.9,3008.7,2.32654]
[1720337627292,2.11,3008.9,3008.7,4.65306]
[1720337627487,2.11,3008.9,3008.7,2.32652]
[1720337627692,2.11,3008.9,3008.7,2.32651]
[1720337627912,2.11,3008.9,3008.7,2.559161]
[1720337628121,2.11,3008.9,3008.7,4.885691]
[1720337628326,2.11,3008.9,3008.8,2.3265]
[1720337628514,2.11,3008.9,3008.8,4.653]
[1720337629334,2.11,3008.9,3008.7,0.232651]
[1720337629489,2.11,3008.9,3008.6,2.32662]
[1720337631963,2.11,3008.9,3008.7,2.32656]
[1720337633335,2.11,3008.9,3008.8,2.3265]
[1720337633972,2.11,3008.9,3008.7,2.32652]
[1720337634191,2.11,3008.9,3008.8,2.3265]
[1720337634486,2.11,3008.9,3008.8,2.791802]
[1720337636263,2.11,3008.9,3008.8,0.465302]
[1720337636597,4.5265,3008.9,3007.7,4.65102]
[1720337636894,4.5265,3008.9,3007.7,2.32732]
[1720337637095,2.32655,3008.8,3007.8,0.06648192]
[1720337637263,2.32655,3008.8,3008.2,2.32692]
[1720337637646,4.5265,3008.9,3008.2,2.32692]
[1720337637885,6.85295,3008.9,3008.2,2.79763362]
[1720337639695,2.11,3008.9,3008.5,2.32674]
[1720337639909,2.11,3008.9,3008.4,2.32681]
[1720337640065,2.11,3008.9,3008.5,2.32666]
[1720337640466,2.11,3008.9,3008.6,2.32666]
[1720337641172,2.11,3008.9,3008.7,2.32653]
[1720337641370,2.11,3008.9,3008.8,2.3265]
[1720337642885,2.11,3008.9,3008.6,0.465347]
[1720337643071,2.11,3008.9,3008.4,2.32677]
[1720337644102,2.11,3008.9,3008.2,2.79768362]
[1720337644103,4.43647,3008.9,3008.2,2.32697]
[1720337644578,4.43647,3008.9,3008.0,2.5803162]
[1720337644579,2.32666,3008.6,3008.0,0.2532262]
[1720337644791,2.32666,3008.6,3008.0,2.5803462]
[1720337645282,2.32666,3008.6,3008.0,0.2532262]
[1720337645598,2.3269,3008.3,3008.0,0.2532262]
[1720337646406,4.7277,3008.5,3008.0,0.2532262]
[1720337646407,2.32705,3008.1,3008.0,0.2532262]
[1720337646577,7.055,3008.1,3008.0,0.2532262]
[1720337647002,8.20628469,3008.1,3008.0,0.2532262]
[1720337647202,9.25960416,3008.1,3008.0,0.2532262]
[1720337647596,9.25960416,3008.1,3007.0,2.32984536]
[1720337647597,3.38036947,3008.1,3007.2,2.32774]
[1720337647799,3.38036947,3008.1,3007.0,2.32984536]
[1720337647800,2.32782,3007.1,3007.0,0.00199536]
[1720337648224,2.32767,3007.3,3007.0,0.00199536]
[1720337648423,2.32778,3007.2,3007.0,0.00199536]
[1720337649345,2.32778,3007.2,3006.3,2.32844]
[1720337649346,2.4009,3006.4,3005.1,1.6235075]
[1720337649639,2.4009,3006.4,3005.1,1.95983529]
[1720337649640,2.32919,3005.4,3005.1,1.95983529]
[1720337649835,3.214,3006.3,3005.1,1.95983529]
[1720337649836,1.70308991,3006.8,3005.4,1.65061971]
[1720337650135,2.32829,3006.5,3005.4,3.97967971]
[1720337650338,2.32852,3006.2,3005.4,3.97973971]
[1720337650836,3.57,3006.7,3005.5,2.329]
[1720337650999,5.89814,3006.7,3005.7,2.32889]
[1720337651201,2.3283,3006.5,3005.4,1.65061971]
[1720337651431,3.57,3006.7,3005.2,1.60342819]
[1720337651432,2.32859,3006.2,3005.2,1.60342819]
[1720337651635,2.32859,3006.2,3005.4,1.65061971]
[1720337651809,2.32861,3006.1,3005.4,1.65061971]
[1720337652009,2.32861,3006.1,3005.2,3.0]
[1720337652010,2.32874,3006.0,3005.2,1.60342819]
[1720337652237,2.32913,3005.5,3005.1,1.6235075]
[1720337652637,2.32899,3005.6,3005.1,1.6235075]
[1720337652806,3.57,3005.7,3005.3,1.67186032]
[1720337653006,3.57,3005.7,3005.3,4.00107032]
[1720337653206,3.57,3005.7,3005.3,4.40117735]
[1720337653934,3.57,3005.7,3005.5,2.32902]
[1720337654122,3.57,3005.7,3005.5,2.27902]
[1720337655248,3.57,3005.7,3005.3,2.07196735]
[1720337655447,3.57,3005.7,3005.1,2.32935]
[1720337655448,0.568,3005.6,3005.1,1.6235075]
[1720337655639,8.31631,3005.7,3005.1,1.6235075]
[1720337655836,2.32912,3005.5,3005.1,1.6235075]
[1720337656037,8.31631,3005.7,3005.0,0.1507905]
[1720337656038,2.32914,3005.4,3005.0,0.1507905]
[1720337656552,0.232914,3005.3,3005.0,0.1507905]
[1720337656765,2.32937,3005.1,3005.0,0.1507905]
[1720337656917,4.74677,3005.1,3005.0,0.1507905]
[1720337657368,7.07614,3005.1,3005.0,0.1507905]
[1720337657525,2.32983,3004.5,3003.7,1.62761086]
[1720337657724,2.32983,3004.5,3003.4,2.33067]
[1720337657725,3.57,3004.3,3003.5,1.62325075]
[1720337657927,3.57,3004.3,3003.7,2.33038]
[1720337658124,3.57,3004.3,3003.7,2.33045]
[1720337658416,3.57,3004.3,3003.3,2.363]
[1720337658614,3.57,3004.3,3003.4,2.33061]
[1720337658827,0.800993,3004.2,3003.6,2.33051]
[1720337659125,3.57,3004.3,3004.1,2.33014]
[1720337659352,3.57,3004.3,3004.0,2.33022]
[1720337659657,3.57,3004.3,3003.2,3.0]
[1720337659658,4.138,3004.3,3003.5,2.33055]
[1720337659890,2.4174,3004.2,3003.6,2.33052]
[1720337660022,4.74747,3004.2,3003.4,2.33063]
[1720337660224,2.4174,3004.2,3003.5,2.33057]
[1720337660422,3.516936,3004.2,3003.2,2.33082]
[1720337660661,3.516936,3004.2,3003.4,2.33068]
[1720337661044,3.516936,3004.2,3003.5,2.33058]
[1720337661360,3.516936,3004.2,3002.6,2.33128]
[1720337661361,2.33017,3004.1,3002.2,2.17075734]
[1720337661539,3.3286636,3004.1,3003.2,2.3308]
[1720337661916,0.9984936,3004.1,3003.1,2.33092]
[1720337662122,0.9984936,3004.1,3002.5,0.23157]
[1720337662123,2.33022,3004.0,3002.5,0.23157]
[1720337662318,0.9984936,3004.1,3003.0,2.33099]
[1720337662569,2.4174,3004.2,3003.2,2.33083]
[1720337662570,2.67182936,3004.0,3003.2,2.33083]
[1720337663073,2.67180936,3004.0,3003.2,2.33083]
[1720337663363,2.33038,3003.8,3003.0,2.33095]
[1720337663572,2.67180936,3004.0,3002.9,2.33106]
[1720337663876,0.34158936,3004.0,3003.2,2.33077]
[1720337664168,2.33015,3004.1,3002.6,4.80639632]
[1720337664374,2.33015,3004.1,3002.5,0.23157]
[1720337664375,2.4174,3004.2,3002.9,2.363]
[1720337664520,3.516933,3004.2,3003.5,2.33055]
[1720337665159,3.516933,3004.2,3003.3,2.33076]
[1720337665160,2.33015,3004.1,3003.3,2.33076]
[1720337666258,2.3303,3003.9,3003.1,2.33089]
[1720337666561,4.74793,3003.7,3002.7,2.33116]
[1720337666722,2.33061,3003.5,3002.8,2.33115]
[1720337666931,3.57,3003.3,3002.8,2.33115]
[1720337667332,5.68,3003.3,3002.6,2.3313]
[1720337667530,6.714135,3003.3,3002.6,2.3313]
[1720337667743,6.714135,3003.3,3002.7,2.33123]
[1720337668067,6.714135,3003.3,3002.8,2.33114]
[1720337668226,6.714135,3003.3,3002.3,3.0]
[1720337668426,6.714135,3003.3,3002.3,3.98653773]
[1720337668654,6.714135,3003.3,3002.7,2.3312]
[1720337668832,5.68,3003.3,3003.0,2.331]
[1720337669033,5.68,3003.3,3002.9,2.33102]
[1720337669263,5.68,3003.3,3003.0,2.33099]
[1720337669560,5.68,3003.3,3003.0,2.331]
[1720337669970,5.68,3003.3,3002.9,2.33102]
[1720337670171,0.568,3003.2,3002.3,3.0]
[1720337670376,0.568,3003.2,3002.4,2.33145]
[1720337670671,2.33097,3003.1,3002.2,2.17075734]
[1720337670875,0.289897,3003.0,3002.3,2.33153]
[1720337671043,2.620907,3003.0,3002.3,2.33153]
[1720337671238,5.8194,3002.9,3002.2,2.17075734]
[1720337671441,2.33154,3002.3,3002.2,2.17075734]
[1720337671694,2.564694,3002.3,3002.2,2.17075734]
[1720337671985,0.233154,3002.3,3002.2,2.17075734]
[1720337672154,2.33154,3002.3,3002.2,2.17075734]
[1720337672357,8.71908,3002.3,3002.2,2.17075734]
[1720337673041,2.33151,3002.4,3002.2,2.17075734]
[1720337673364,5.65126,3002.7,3002.2,2.17075734]
[1720337673570,0.796466,3002.6,3002.2,2.17075734]
[1720337673790,2.33139,3002.5,3002.2,2.17075734]
[1720337674086,2.33147,3002.4,3002.2,2.17075734]
[1720337674239,8.1694,3002.1,3002.0,0.11293711]
[1720337674441,3.32,3002.7,3002.6,2.33131]
[1720337674642,2.8513549,3005.5,3003.5,2.3306]
[1720337674844,3.57,3004.4,3002.9,2.46]
[1720337675059,3.57,3004.4,3003.9,2.33024]
[1720337675289,3.57,3004.4,3004.1,2.33008]
[1720337675657,3.57,3004.4,3004.3,2.32999]
[1720337675854,3.57,3004.4,3003.7,2.33043]
[1720337675855,3.57,3004.4,3003.9,2.33027]
[1720337676199,0.357,3004.3,3003.7,2.33044]
[1720337677013,0.357,3004.3,3003.4,2.33062]
[1720337677169,0.357,3004.3,3003.5,2.33058]
[1720337677521,3.863,3004.3,3003.0,2.33094]
[1720337677668,2.33015,3004.1,3003.2,2.33084]
[1720337677991,0.625692,3004.2,3003.4,2.33066]
[1720337678201,0.625692,3004.2,3003.5,2.3306]
[1720337678582,0.625692,3004.2,3003.6,2.33053]
[1720337678955,0.625692,3004.2,3003.0,0.06659178]
[1720337678956,0.625692,3004.2,3003.8,2.33036]
[1720337679150,0.625692,3004.2,3003.1,3.163]
[1720337679354,0.625692,3004.2,3003.1,3.712398]
[1720337679587,2.955832,3004.2,3003.3,2.33075]
[1720337680098,2.33028,3004.0,3003.1,2.33092]
[1720337680396,2.33077,3003.3,3002.4,2.33146]
[1720337680595,2.33077,3003.3,3002.2,2.3316]
[1720337680596,3.57,3003.1,3002.2,2.3316]
[1720337680906,2.688,3003.0,3002.0,2.44469711]
[1720337681300,0.357,3003.0,3002.1,2.3317]
[1720337681620,0.357,3003.0,3002.4,2.33145]
[1720337681823,0.357,3003.0,3002.3,2.33147]
[1720337682319,3.506,3002.8,3002.0,0.11293711]
[1720337682619,2.33123,3002.7,3002.0,0.11293711]
[1720337682821,5.83723,3002.7,3002.0,0.11293711]
[1720337683141,0.55,3002.6,3002.0,0.11293711]
[1720337683294,2.33139,3002.5,3002.0,0.11293711]
[1720337683474,4.729609,3002.4,3002.0,0.11293711]
[1720337683670,2.398139,3002.4,3002.0,0.11293711]
[1720337684277,2.398139,3002.4,3002.0,2.44468711]
[1720337685318,2.11,3002.4,3002.1,2.33169]
[1720337685679,2.11,3002.4,3002.2,2.33161]
[1720337685977,2.11,3002.4,3002.3,2.33154]
[1720337686175,3.57,3003.1,3002.5,2.33131]
[1720337686395,3.57,3003.1,3002.0,0.11293711]
[1720337686396,3.57,3003.1,3002.4,2.33142]
[1720337686592,5.90092,3003.1,3002.4,2.33142]
[1720337686840,0.590092,3003.0,3002.4,2.33142]
[1720337686991,0.590092,3003.0,3002.0,0.11293711]
[1720337687193,2.33123,3002.7,3002.0,0.11293711]
[1720337687393,2.3317,3002.1,3002.0,0.11293711]
[1720337687600,2.33156,3002.3,3002.0,0.11293711]
[1720337687601,2.11,3002.2,3002.0,0.11293711]
[1720337687930,0.444156,3002.1,3002.0,0.11293711]
[1720337688227,2.11,3002.2,3002.0,0.11293711]
[1720337688833,2.11,3002.2,3002.1,2.3317]
[1720337690297,2.11,3002.2,3002.0,0.11293711]
[1720337695400,4.44167,3002.2,3002.0,0.11293711]
[1720337695639,0.677322,3002.1,3002.0,0.11293711]
[1720337697206,2.11,3002.2,3002.0,0.11293711]
[1720337698742,2.11,3002.2,3002.0,2.44469711]
[1720337699309,2.11,3002.2,3002.0,0.11293711]
[1720337700818,2.11,3002.2,3002.0,2.44470711]
[1720337701804,2.11,3002.2,3002.0,0.11293711]
[1720337702027,2.11,3002.2,3002.1,4.6634]
[1720337702228,2.33116,3002.8,3002.1,2.3317]
[1720337702544,0.233116,3002.7,3002.1,2.3317]
[1720337702904,0.590092,3003.0,3002.0,0.11293711]
[1720337703110,4.80944,3003.4,3002.7,2.33122]
[1720337703717,2.4787,3003.4,3002.7,2.33122]
[1720337703927,2.33062,3003.5,3002.7,4.66239]
[1720337704150,2.321,3003.2,3002.8,2.33113]
[1720337704444,2.321,3003.2,3002.2,2.33159]
[1720337704445,2.33092,3003.1,3002.2,2.33159]
[1720337704661,2.33092,3003.1,3002.4,2.33142]
[1720337704873,2.33104,3003.0,3002.2,2.33159]
[1720337705036,2.564194,3002.9,3002.2,2.33159]
[1720337705235,2.564194,3002.9,3002.2,2.33156]
[1720337705626,2.564194,3002.9,3002.3,2.33153]
[1720337705813,2.564194,3002.9,3002.2,2.33155]
[1720337706042,0.55,3002.8,3002.0,0.11293711]
[1720337706233,2.33133,3002.6,3002.0,0.11293711]
[1720337706428,0.466263,3002.5,3002.0,0.11293711]
[1720337706939,2.3317,3002.1,3002.0,0.11293711]
[1720337708247,2.33155,3002.3,3002.0,0.11293711]
[1720337708731,5.797713,3002.5,3002.0,0.11293711]
[1720337709054,0.8129063,3002.4,3002.0,0.11293711]
[1720337709222,5.797713,3002.5,3002.0,0.11293711]
[1720337709223,0.466263,3002.5,3002.0,0.11293711]
[1720337709418,2.33121,3002.8,3002.0,2.44465711]
[1720337709758,0.233104,3002.9,3002.0,2.44465711]
[1720337709927,4.44086,3003.2,3002.0,2.44465711]
[1720337710120,2.33097,3003.1,3002.2,2.33161]
[1720337710318,4.44086,3003.2,3002.2,2.33161]
[1720337710319,4.44086,3003.2,3002.3,2.3315]
[1720337710643,2.11,3003.2,3002.8,2.33115]
[1720337711150,2.11,3003.2,3002.9,2.33104]
[1720337711374,2.33039,3003.8,3003.0,2.33099]
[1720337711574,1.15295862,3003.7,3003.1,2.33092]
[1720337711766,4.66055,3004.0,3003.2,2.33083]
[1720337711962,2.33039,3003.8,3003.2,2.33083]
[1720337712276,4.06476277,3003.7,3003.0,2.33095]
[1720337712601,0.58136389,3003.7,3003.1,2.3309]
[1720337712743,2.91183389,3003.7,3002.8,2.33112]
[1720337712942,2.91183389,3003.7,3002.5,2.33136]
[1720337712943,2.33047,3003.7,3003.0,2.33099]
[1720337713165,2.33047,3003.7,3003.0,2.33096]
[1720337713546,2.33031,3003.9,3003.0,2.33096]
[1720337713766,1.15293385,3003.8,3003.1,2.33091]
[1720337714050,0.233031,3003.8,3003.1,2.33091]
[1720337714481,2.33018,3004.1,3003.2,2.33083]
[1720337714800,2.33018,3004.1,3003.3,2.33076]
[1720337715078,2.11,3004.3,3003.4,2.33064]
[1720337715079,2.33009,3004.2,3003.4,2.33064]
[1720337715249,2.33016,3004.1,3003.4,2.33064]
[1720337715449,2.33009,3004.2,3003.4,2.33065]
[1720337715450,2.33022,3004.0,3003.4,2.33065]
[1720337715650,2.796251,3004.0,3003.4,2.33065]
[1720337715850,2.796251,3004.0,3003.0,2.33093]
[1720337715851,2.33032,3003.9,3003.0,2.33093]
[1720337716075,2.33032,3003.9,3003.1,2.33092]
[1720337716688,2.33032,3003.9,3003.2,2.33083]
[1720337717361,2.796251,3004.0,3003.2,2.33083]
[1720337717362,2.33039,3003.8,3003.2,2.33083]
[1720337717570,0.5126641,3003.8,3002.7,2.6344]
[1720337717901,2.33031,3003.9,3003.2,2.33083]
[1720337718553,2.33027,3004.0,3003.3,2.33075]
[1720337719681,2.3301,3004.2,3003.3,2.33075]
[1720337719885,2.33016,3004.1,3003.3,2.3307]
[1720337721012,2.3301,3004.2,3003.4,2.33064]
[1720337721220,3.307102,3004.2,3003.4,2.33064]
[1720337721384,0.977002,3004.2,3003.5,2.3306]
[1720337721766,7.41,3005.0,3004.1,2.33008]
[1720337721968,1.69922309,3005.5,3003.9,2.33027]
[1720337722270,1.69922309,3005.5,3003.6,2.6344]
[1720337722271,2.32953,3004.9,3004.2,2.33]
[1720337722471,0.232953,3004.8,3003.8,2.33036]
[1720337722684,0.232953,3004.8,3002.2,4.663]
[1720337722685,2.819,3004.7,3003.4,2.33067]
[1720337722892,2.32997,3004.4,3003.6,2.33051]
[1720337723094,2.32999,3004.3,3003.6,2.33051]
[1720337723322,2.32997,3004.4,3003.5,2.3306]
[1720337723501,2.562987,3004.3,3003.5,2.3306]
[1720337723824,2.33035,3003.9,3003.1,2.33084]
[1720337723974,2.3304,3003.8,3002.5,2.6344]
[1720337724168,2.56344,3003.8,3003.0,2.33095]
[1720337724373,2.56344,3003.8,3002.8,2.33115]
[1720337724374,2.56344,3003.8,3003.1,2.33092]
[1720337725014,0.23304,3003.8,3003.2,2.33084]
[1720337725167,3.506,3004.4,3002.6,0.812883]
[1720337725168,2.32991,3004.5,3003.7,2.33044]
[1720337725371,4.43974,3004.7,3003.7,2.33044]
[1720337725669,2.32976,3004.6,3003.7,2.33044]
[1720337725909,2.32984,3004.5,3003.7,2.33044]
[1720337726077,2.562914,3004.4,3003.7,2.33044]
[1720337726497,2.562914,3004.4,3003.5,2.3306]
[1720337727008,2.562914,3004.4,3003.7,2.33045]
[1720337727167,2.562914,3004.4,3003.6,2.33049]
[1720337727569,2.562914,3004.4,3003.5,2.3306]
[1720337727570,2.33006,3004.3,3003.4,2.33068]
[1720337727770,2.33055,3003.6,3002.8,2.6344]
[1720337728001,2.33055,3003.6,3002.6,2.33124]
[1720337728201,2.33055,3003.6,3002.7,2.33123]
[1720337728405,0.466108,3003.5,3002.7,2.33123]
[1720337728608,2.796718,3003.5,3002.7,2.33123]
[1720337728904,2.796718,3003.5,3002.5,2.33136]
[1720337729115,2.33092,3003.1,3002.1,2.33167]
[1720337729306,2.819,3003.2,3002.1,2.33169]
[1720337729613,2.33124,3002.7,3002.0,2.44469711]
[1720337729819,2.11,3002.6,3002.0,0.11293711]
[1720337730015,2.3317,3002.1,3002.0,0.11293711]